[Event "Azerbaijan Men Championship 2024"]
[Site "Baku"]
[Date "2024.04.15"]
[Round "5.7"]
[White "Hamidov, Allahverdi"]
[Black "Abdulov, Orkhan"]
[Result "1-0"]
[ECO "A70"]
[WhiteElo "2091"]
[BlackElo "2401"]
[Annotator "TA"]
[PlyCount "89"]
[EventDate "2024.04.11"]
[EventType "swiss"]
[EventCountry "AZE"]
[SourceTitle "playchess.com"]
[Source "ChessBase"]
[SourceQuality "1"]
[TimeControl "40/5400+30:1800+30"]

{[%evp 16,88,14,13,23,24,28,25,21,22,18,0,55,61,53,56,59,-101,-102,-118,-118,-90,-92,-111,28,19,18,16,140,138,123,105,185,133,127,97,400,473,466,465,493,490,433,385,589,585,641,639,738,562,545,435,1429,1428,1185,1127,1127,1031,29980,927,29967,29968,29990,29991,29991,0,29990,29991,29991,29992,29992,29992,29992,29993,29999]} 1. d4 {[%emt 0:00:03]} Nf6 {[%emt 0:07:53]} 2. c4 {[%emt 0:00:11]} c5 {[%emt 0:00:12]} 3. d5 {[%emt 0:00:10]} e6 {[%emt 0:00:19]} 4. Nc3 {[%emt 0:00:09]} exd5 {[%emt 0:00:14]} 5. cxd5 {[%emt 0:00:06]} d6 {[%emt 0:00:22]} 6. e4 {[%emt 0:01:19]} g6 {[%emt 0:00:19]} 7. h3 {[%emt 0:00:09]} Bg7 {[%emt 0:00:20]} 8. Be3 {[%emt 0:00:17]} O-O {[%emt 0:09:52]} 9. Nf3 {[%emt 0:00:12]} Re8 {[%emt 0:01:36]} 10. Nd2 {[%emt 0:02:14]} Na6 {[%emt 0:04:53]} 11. Be2 {[%emt 0:01:04]} Nc7 {[%emt 0:00:27][%cal Ob7b5] White has an edge.} 12. a4 {[%emt 0:00:30]} Rb8 {[%emt 0:01:16]} 13. Rb1 {[%emt 0:37:17]} Na6 {[%emt 0:22:19]} (13... a6 $11) 14. O-O $14 {[%emt 0:09:37]} Nb4 {[%emt 0:00:01]} 15. Bf4 {[%emt 0:01:36]} a6 {[%emt 0:02:51]} 16. Nc4 $2 {[%emt 0:03:35]} (16. Re1 $14 {stays ahead.}) 16... Nxe4 $17 {[%emt 0:05:08]} 17. Bf3 {[%emt 0:17:04]} Bxc3 {[%emt 0:07:16]} (17... Nxc3 18. bxc3 Bxc3 19. Nxd6 $14) 18. bxc3 {[%emt 0:00:27]} Nxc3 {[%emt 0:00:34] Excellent horsemanship.} 19. Qd2 {[%emt 0:00:35]} Ne4 {[%emt 0:20:55]} ({Better is} 19... Nxb1 $17 20. Rxb1 Bf5) 20. Bxe4 $11 {[%emt 0:00:48]} Rxe4 {[%emt 0:01:14]} 21. Rxb4 {[%emt 0:00:48]} (21. Bxd6 Rd4 22. Qh6 Rh4 $15) 21... cxb4 {[%emt 0:01:43]} (21... b5 $11) 22. Nxd6 $16 {[%emt 0:00:27]} Re7 {[%emt 0:01:15]} 23. Qxb4 {[%emt 0:04:58] Strongly threatening Bg5. White is much more active.} Bd7 {[%emt 0:03:14] [#]} (23... a5 $16 24. Qc3 Re2 25. Nxf7 Kxf7) 24. Ne4 {[%emt 0:09:59]} ({Not} 24. Nxb7 Rxb7 25. Qxb7 Bb5 $11 (25... Bxa4 $2 {loses.} 26. Qb4 $18) (25... Bxa4 $2 26. Qb4 $18)) (24. Bg5 $1 $18 {[%cal Ob4h4] And now Qh4! would win.} Qf8 25. Bxe7 (25. Ne4 Rxe4 26. Qxe4 f6 $16) 25... Qxe7 26. Re1) 24... Rxe4 {[%emt 0:01:36]} 25. Qxe4 {[%emt 0:00:04]} Qh4 $2 {[%emt 0:01:36][%mdl 8192] Black is weak on the dark squares} (25... Rc8 $16 {is tougher.}) 26. g3 $18 {[%emt 0:01:09]} Qd8 {[%emt 0:00:50]} 27. Bxb8 {[%emt 0:00:07]} Qxb8 {[%emt 0:00:03][%mdl 4096] Endgame. KQR-KQB} 28. Qe7 {[%emt 0:02:25] Against Qd6} Qc8 {[%emt 0:00:36]} 29. a5 {[%emt 0:01:07]} Bxh3 {[%emt 0:00:07]} (29... Bb5 {keeps fighting.} 30. Rd1 Qxh3 31. Qxb7 Qg4 32. Qb8+ Kg7 33. Qe5+ Kg8) 30. Rb1 {[%emt 0:01:35]} Qf5 {[%emt 0:00:55]} 31. Qxb7 {[%emt 0:00:15]} (31. Rxb7 Qxd5 32. Rb8+ Kg7 33. Qf8+ Kf6 34. Qd8+ Qxd8 35. Rxd8 Ke7) 31... Bg4 {[%emt 0:00:27]} 32. d6 {[%emt 0:00:20] [#] Rb4 would now be deadly.} Qd3 {[%emt 0:00:36]} 33. Qb6 {[%emt 0:02:46] Black must now prevent Re1.} Bf5 {[%emt 0:00:51]} (33... Bd7 $142 34. Qb8+ Kg7 35. Qb2+ Kg8) 34. Re1 {[%emt 0:00:31]} Qd2 {[%emt 0:00:21]} 35. Re8+ {[%emt 0:02:54]} Kg7 {[%emt 0:00:01]} 36. Qd8 {[%emt 0:00:27] Threatening mate with Rg8+.} h5 {[%emt 0:02:11]} 37. Qe7 {[%emt 0:01:03]} (37. Rg8+ $142 Kh7 38. Rh8+ Kg7 39. Qf8+ Kf6 40. Qe7+ Kg7 41. Qe5+ (41. Qf8+ Kf6 42. Qe7+ Kg7 43. Qe5+ f6 44. Qe8 Qe1+ 45. Qxe1 Kxh8 46. Qe8+ Kg7) 41... f6 42. Qe8) 37... Qd1+ {[%emt 0:01:19]} 38. Kh2 {[%emt 0:00:17]} Qc2 {[%emt 0:02:15]} 39. Qf8+ {[%emt 0:00:19]} Kf6 {[%emt 0:00:05]} 40. Qe7+ {[%emt 0:00:00]} Kg7 {[%emt 0:00:00]} 41. Qe5+ {[%emt 0:00:30] White mates.} Kh6 {[%emt 0:04:21]} 42. Rh8+ {[%emt 0:00:18]} Kg5 {[%emt 0:00:01]} 43. Qe3+ {[%emt 0:00:10]} Kf6 {[%emt 0:00:07]} 44. Qd4+ {[%emt 0:00:39]} Kg5 {[%emt 0:01:02]} 45. Qh4# {[%emt 0:32:29] Weighted Error Value: White=0.47/Black=0.74.  Loses game:     	---       	Black=1      Mistake:       	White=2     	Black=6      OK:         	White=10    	Black=9      Best:        	White=4     	Black=2} 1-0

[Event "Azerbaijan Men Championship 2024"]
[Site "Baku"]
[Date "2024.04.15"]
[Round "5.8"]
[White "Talibov, Shiroghlan"]
[Black "Rustamov, Rustam"]
[Result "1-0"]
[ECO "B65"]
[WhiteElo "2373"]
[BlackElo "2261"]
[Annotator "RC"]
[PlyCount "153"]
[EventDate "2024.04.11"]
[EventType "swiss"]
[EventCountry "AZE"]
[SourceTitle "playchess.com"]
[Source "ChessBase"]
[SourceQuality "1"]
[TimeControl "40/5400+30:1800+30"]

1. e4 {[%emt 0:00:01]} c5 {[%emt 0:00:21]} 2. Nf3 {[%emt 0:00:26]} d6 {[%emt 0:00:04]} 3. d4 {[%emt 0:00:04]} cxd4 {[%emt 0:00:05]} 4. Nxd4 {[%emt 0:00:03]} Nf6 {[%emt 0:00:07]} 5. Nc3 {[%emt 0:00:03]} Nc6 {[%emt 0:00:03]} 6. Bg5 {[%emt 0:00:05]} e6 {[%emt 0:02:13]} 7. Qd2 {[%emt 0:01:33]} Be7 {[%emt 0:00:59]} 8. O-O-O {[%emt 0:02:52]} O-O {[%emt 0:02:34]} 9. f4 {[%emt 0:07:36]} Nxd4 {[%emt 0:00:16]} 10. Qxd4 {[%emt 0:00:06]} Qa5 {[%emt 0:00:15]} 11. Qd3 {[%emt 0:11:06]} a6 {[%emt 0:07:59]} 12. Kb1 {[%emt 0:05:45]} Bd7 {[%emt 0:09:32]} 13. Be2 {[%emt 0:06:54]} Bc6 {[%emt 0:18:36]} 14. Qg3 {[%emt 0:10:59]} Rfe8 {[%emt 0:02:56]} 15. Bf3 {[%emt 0:05:40]} d5 {[%emt 0:09:28]} 16. e5 {[%emt 0:06:24]} Ne4 {[%emt 0:02:40]} 17. Bxe4 {[%emt 0:00:49]} dxe4 {[%emt 0:01:19]} 18. Bxe7 {[%emt 0:09:26]} Rxe7 {[%emt 0:00:04]} 19. Rd4 {[%emt 0:00:27]} Rd8 {[%emt 0:03:22]} 20. Rhd1 {[%emt 0:01:05]} Rxd4 {[%emt 0:05:56]} 21. Rxd4 {[%emt 0:00:09]} Qb6 {[%emt 0:01:26]} 22. Qe3 {[%emt 0:04:44]} h6 {[%emt 0:01:04]} 23. Qd2 {[%emt 0:00:39]} e3 {[%emt 0:07:44]} 24. Qd3 {[%emt 0:00:28]} g6 {[%emt 0:00:19]} 25. g3 {[%emt 0:00:29]} Kg7 {[%emt 0:01:16]} 26. h4 {[%emt 0:02:17]} Bb5 {[%emt 0:10:03]} 27. Qxe3 {[%emt 0:05:44]} Rd7 {[%emt 0:00:18]} 28. Rd3 {[%emt 0:00:35]} Qd8 {[%emt 0:00:20]} 29. Rxd7 {[%emt 0:01:05]} Qxd7 {[%emt 0:00:08]} 30. b3 {[%emt 0:00:22]} Bc6 {[%emt 0:00:12]} 31. Kc1 {[%emt 0:00:35]} Qc7 {[%emt 0:00:24]} 32. Qc5 {[%emt 0:01:01]} Qd8 {[%emt 0:00:38]} 33. a4 {[%emt 0:00:56]} g5 {[%emt 0:00:48]} 34. hxg5 {[%emt 0:00:46]} hxg5 {[%emt 0:00:03]} 35. Qe3 {[%emt 0:00:20]} gxf4 {[%emt 0:00:44]} 36. gxf4 {[%emt 0:00:21]} Qh4 {[%emt 0:00:36]} 37. Ne2 {[%emt 0:00:57]} Qe1+ {[%emt 0:01:13]} 38. Kb2 {[%emt 0:00:01]} Kf8 {[%emt 0:00:11]} 39. Qc5+ {[%emt 0:05:19]} Ke8 {[%emt 0:00:21]} 40. Nc1 {[%emt 0:00:00]} Be4 {[%emt 0:00:00]} 41. Qc8+ {[%emt 0:10:27]} Ke7 {[%emt 0:03:51]} 42. Qc3 {[%emt 0:00:01]} Qh1 {[%emt 0:00:53]} 43. Ne2 {[%emt 0:00:36]} Qg2 {[%emt 0:01:09]} 44. Qe3 {[%emt 0:00:58]} Bf3 {[%emt 0:00:41]} 45. Nd4 {[%emt 0:01:56]} Be4 {[%emt 0:00:50]} 46. Qe2 {[%emt 0:00:04]} Qh1 {[%emt 0:00:05]} 47. Qd2 {[%emt 0:00:55]} Ke8 {[%emt 0:00:48]} 48. b4 {[%emt 0:02:06]} Bd5 {[%emt 0:00:42]} 49. Qe3 {[%emt 0:00:38]} Qf1 {[%emt 0:00:26]} 50. a5 {[%emt 0:03:16]} Kf8 {[%emt 0:06:30]} 51. f5 {[%emt 0:04:29]} exf5 {[%emt 0:01:22]} 52. Qh6+ {[%emt 0:00:07]} Ke8 {[%emt 0:00:12]} 53. Qh8+ {[%emt 0:00:58]} Kd7 {[%emt 0:00:39]} 54. Qf6 {[%emt 0:00:48]} Be6 {[%emt 0:09:14]} 55. Nxe6 {[%emt 0:00:07]} fxe6 {[%emt 0:00:03]} 56. Qf7+ {[%emt 0:00:03]} Kd8 {[%emt 0:00:08]} 57. Qf8+ {[%emt 0:00:06]} Kd7 {[%emt 0:01:30]} 58. Qd6+ {[%emt 0:00:05]} Kc8 {[%emt 0:00:46]} 59. Qxe6+ {[%emt 0:00:02]} Kd8 {[%emt 0:00:18]} 60. Qf6+ {[%emt 0:01:03]} Kc8 {[%emt 0:00:26]} 61. Qf8+ {[%emt 0:08:34]} Kd7 {[%emt 0:00:17]} 62. Qf7+ {[%emt 0:00:07]} Kc8 {[%emt 0:00:24]} 63. Qe8+ {[%emt 0:09:19]} Kc7 {[%emt 0:00:05]} 64. Qe7+ {[%emt 0:03:26]} Kc8 {[%emt 0:00:04]} 65. Qd6 {[%emt 0:00:40]} Qf4 {[%emt 0:00:40]} 66. c3 {[%emt 0:01:30]} Qf2+ {[%emt 0:01:36]} 67. Kb3 {[%emt 0:00:01]} Qf1 {[%emt 0:00:23]} 68. Qd5 {[%emt 0:02:46]} Qb1+ {[%emt 0:04:58]} 69. Kc4 {[%emt 0:00:01]} Qf1+ {[%emt 0:01:02]} 70. Kc5 {[%emt 0:00:22]} f4 {[%emt 0:00:35]} 71. Kd6 {[%emt 0:00:50]} Kb8 {[%emt 0:01:15]} 72. e6 {[%emt 0:00:18]} Qg1 {[%emt 0:01:05]} 73. e7 {[%emt 0:00:44]} Qg6+ {[%emt 0:00:02]} 74. Kd7 {[%emt 0:00:15]} Qg4+ {[%emt 0:00:25]} 75. Qe6 {[%emt 0:00:12]} Qg7 {[%emt 0:00:11]} 76. Kd8 {[%emt 0:00:24]} Qg5 {[%emt 0:00:04]} 77. Qc8+ {[%emt 0:00:04]} 1-0

[Event "Azerbaijan Men Championship 2024"]
[Site "Baku"]
[Date "2024.04.15"]
[Round "5.9"]
[White "Hasanzade, Toghrul"]
[Black "Aslanov, Umid"]
[Result "1-0"]
[ECO "B90"]
[WhiteElo "2350"]
[BlackElo "2239"]
[Annotator "TA"]
[PlyCount "103"]
[EventDate "2024.04.11"]
[EventType "swiss"]
[EventCountry "AZE"]
[SourceTitle "playchess.com"]
[Source "ChessBase"]
[SourceQuality "1"]
[TimeControl "40/5400+30:1800+30"]

{[%evp 10,103,29,-11,0,-1,8,11,14,16,17,11,12,0,1,0,1,4,29,26,23,26,31,40,26,22,19,-13,-25,-38,-31,-37,-29,-44,-21,-61,-22,-20,-13,-19,-25,-23,-12,-21,0,-5,8,-21,0,-14,-27,-66,61,52,407,18,29978,393,380,362,555,550,543,548,512,452,444,462,462,442,446,449,416,381,445,414,636,614,611,450,513,483,475,457,763,718,655,615,826,801,800,764,738,731,29985,767]} 1. e4 {[%emt 0:00:04]} c5 {[%emt 0:00:11]} 2. Nf3 {[%emt 0:00:24]} d6 {[%emt 0:00:09]} 3. d4 {[%emt 0:00:07]} cxd4 {[%emt 0:00:07]} 4. Nxd4 {[%emt 0:00:03]} Nf6 {[%emt 0:00:18]} 5. Nc3 {[%emt 0:00:06]} a6 {[%emt 0:00:03]} 6. Nf3 {[%emt 0:00:41]} Nc6 {[%emt 0:07:31]} 7. Bf4 $1 {[%emt 0:01:00]} e5 {[%emt 0:17:01]} 8. Bg5 {[%emt 0:00:06]} Be6 {[%emt 0:01:21] The position is equal.} 9. Bxf6 {[%emt 0:01:45]} Qxf6 {[%emt 0:07:57]} 10. Nd5 {[%emt 0:02:28]} Qd8 {[%emt 0:02:29]} 11. h4 {[%emt 0:04:41]} Qa5+ {[%emt 0:08:02]} 12. c3 {[%emt 0:11:07]} Bxd5 {[%emt 0:03:24]} 13. exd5 {[%emt 0:00:20]} Ne7 {[%emt 0:00:17]} 14. Qb3 {[%emt 0:01:56]} Qxd5 {[%emt 0:07:42]} 15. Bc4 {[%emt 0:05:12]} Qe4+ {[%emt 0:00:10]} 16. Kf1 $1 {[%emt 0:03:19]} f6 {[%emt 0:12:41]} (16... d5 $2 17. Be2 Qf5 18. Qxb7 $18) 17. Rd1 {[%emt 0:33:27] White wants to mate with Bf7+.} (17. Bf7+ {is interesting.} Kd7 18. Rd1 Qc6 19. h5) 17... O-O-O {[%emt 0:03:13]} 18. Bd5 {[%emt 0:05:03]} Nxd5 {[%emt 0:00:19]} 19. Rxd5 {[%emt 0:00:06]} Qb1+ {[%emt 0:10:33]} 20. Ne1 {[%emt 0:05:28]} Rd7 {[%emt 0:04:36]} 21. Rh3 {[%emt 0:04:20]} Qe4 {[%emt 0:00:51]} 22. Qd1 {[%emt 0:05:18]} g5 {[%emt 0:02:23]} 23. hxg5 {[%emt 0:02:35]} fxg5 {[%emt 0:00:12][%cal Oh7h5,Bf6g5,Bg5g4,Bg4g3][%mdl 32]} 24. Re3 {[%emt 0:00:38]} Qf5 {[%emt 0:01:07]} 25. b4 {[%emt 0:00:31][%cal Bb2b4,Bb4b5][%mdl 32]} g4 {[%emt 0:01:31] White should prevent ...Rf7.} 26. b5 {[%emt 0:02:44] Threatens to win with bxa6.} Bh6 {[%emt 0:00:27]} 27. Re2 {[%emt 0:01:12] bxa6 would now be deadly.} Qh5 {[%emt 0:02:17][%cal Rh5h1] [#]} 28. Rexe5 $1 {[%emt 0:02:12]} Qh1+ {[%emt 0:00:30]} (28... dxe5 $6 29. Rxd7 Qf5 30. Rd5 $18) 29. Ke2 {[%emt 0:00:01] [#]} g3 $1 {[%emt 0:00:14]} 30. Re4 {[%emt 0:06:45] Qd4 is the strong threat.} (30. Re6 axb5) 30... Rf8 {[%emt 0:01:49]} (30... gxf2 $1 $15 31. Kxf2 Rf8+ 32. Nf3 Qxd1 33. Rxd1 Rf5 (33... axb5 34. Kg1 $14)) 31. f3 $14 {[%emt 0:00:39] Dancing on a razor blade.} axb5 $2 {[%emt 0:06:35][%mdl 8192] [#] White now steadily converts the win.} (31... Qg1 $1 $14) 32. Rxb5 $2 {[%emt 0:01:11]} (32. Qd4 $1 $18 {[%cal Rd4a7]}) 32... Kb8 {[%emt 0:00:00][%mdl 8192]} (32... Qg1 $11 33. Qd5 Kb8) 33. Qd4 $2 {[%emt 0:00:37]} (33. Rxb7+ {mates} Rxb7 34. Qxd6+ Rc7 35. Rb4+ Kc8 36. Qe6+ Rd7 37. Rd4 Qxe1+ 38. Kxe1) 33... Bg7 $18 {[%emt 0:00:00] [#]} 34. Qe3 {[%emt 0:00:15]} Bh6 {[%emt 0:00:00]} (34... Qh6 {might work better.} 35. Re8+ Rxe8 (35... Rd8 36. Rxd8+ Rxd8 37. Qe7) 36. Qxe8+ Kc7) 35. Re8+ {[%emt 0:00:34]} Rxe8 {[%emt 0:02:00]} 36. Qxe8+ {[%emt 0:00:05]} Kc7 {[%emt 0:00:00] [#]} 37. Rxb7+ $3 {[%emt 0:00:10][%mdl 512]} Kxb7 {[%emt 0:00:00]} 38. Qxd7+ {[%emt 0:00:05][%mdl 4096] Endgame. KQB-KQN} Ka8 {[%emt 0:00:00]} 39. Qc8+ {[%emt 0:00:22]} ({But not} 39. Qxh7 Qh5 40. Nd3 (40. Qg8+ Ka7 $18) 40... Kb8 $18) 39... Ka7 {[%emt 0:00:00]} 40. Qc7+ {[%emt 0:00:00]} Ka8 {[%emt 0:00:00]} 41. Qxd6 {[%emt 0:06:33]} Qh5 {[%emt 0:00:00]} 42. Nd3 {[%emt 0:02:21] aiming for Qc6+.} (42. Qxg3 Qe8+ 43. Kf1 Qb5+ 44. Kg1 (44. Kf2 Qc5+ 45. Ke2 Qc4+ 46. Kf2 Qc5+ 47. Kf1 Qc4+ 48. Kg1 Be3+ 49. Kh1 Bd2 $11) 44... Be3+ 45. Kh2 Qh5+ 46. Qh3 Qe5+ 47. g3 Qxc3 $18) 42... Qh2 {[%emt 0:00:00]} (42... Qe8+ $142 43. Kf1 Bf8 44. Qxg3 Qe3) 43. Qd5+ {[%emt 0:01:05]} Kb8 {[%emt 0:00:00]} 44. Qe5+ {[%emt 0:00:20]} Ka8 {[%emt 0:00:00]} 45. Ne1 {[%emt 0:00:43]} Kb7 {[%emt 0:00:34]} 46. c4 {[%emt 0:00:33]} Ka7 {[%emt 0:00:48]} (46... Qh4 $142 47. Qe4+ Qxe4+ 48. fxe4 Kc7) 47. Qe7+ {[%emt 0:02:13]} Ka8 {[%emt 0:00:07]} 48. Qxh7 {[%emt 0:00:33]} Qh5 {[%emt 0:00:54]} 49. Nd3 {[%emt 0:00:40]} Qg5 {[%emt 0:00:42]} 50. Qe4+ {[%emt 0:00:12]} Ka7 {[%emt 0:00:03]} 51. Qd4+ {[%emt 0:00:22]} Ka6 {[%emt 0:00:01]} 52. Qd6+ {[%emt 0:00:35] Weighted Error Value: White=0.41/Black=0.47.  Loses game:     	---       	Black=2      Missed win:     	White=1     	---        Mistake:       	White=1     	Black=4      Inaccurate:     	White=4     	Black=1      OK:         	White=14    	Black=14     Best:        	White=3     	Black=5      Strong:       	White=2     	---} (52. Nc5+ $142 Ka5 53. Qc3+ Kb6 54. Qb4+ Kc7 55. Ne6+ Kd7 56. Nxg5 Ke8 57. Qb5+ Ke7 58. Qe5+ Kd7 59. Qe6+ (59. Qxg3 Bg7 60. Qh3+ Kd8 61. Qe6 Bd4 62. Qf7 Kc8 63. Ne6 Be5 64. Nc5 Bc7 65. Qe8+ Bd8 66. Qd7+ Kb8 67. Qb7#) 59... Kd8 60. Qxh6) 1-0

[Event "Azerbaijan Men Championship 2024"]
[Site "Baku"]
[Date "2024.04.15"]
[Round "5.10"]
[White "Sevdimaliyev, Urfan"]
[Black "Ahmad, Khagan"]
[Result "0-1"]
[ECO "B33"]
[WhiteElo "2320"]
[BlackElo "2321"]
[Annotator "TA"]
[PlyCount "84"]
[EventDate "2024.04.11"]
[EventType "swiss"]
[EventCountry "AZE"]
[SourceTitle "playchess.com"]
[Source "ChessBase"]
[SourceQuality "1"]
[TimeControl "40/5400+30:1800+30"]

{[%evp 26,84,10,0,0,0,4,0,18,16,13,12,43,0,0,-45,-29,-42,-40,-52,-57,-61,-45,-89,-65,-120,-98,-129,-139,-214,-229,-253,-196,-221,-212,-221,-214,-250,-222,-220,-229,-243,-241,-244,-232,-296,-226,-229,-221,-225,-218,-431,-431,-417,-404,-366,-339,-362,-362,-1049,-988]} 1. e4 {[%emt 0:00:21]} c5 {[%emt 0:00:10]} 2. Nf3 {[%emt 0:00:10][%cal Bg1f3,Bf3d4,Bd4b5,Bb5a3,Ba3c2][%mdl 32]} Nc6 {[%emt 0:00:13]} 3. d4 {[%emt 0:00:38]} cxd4 {[%emt 0:00:04]} 4. Nxd4 {[%emt 0:00:03]} Nf6 {[%emt 0:00:07]} 5. Nc3 {[%emt 0:00:06]} e5 {[%emt 0:00:05]} 6. Ndb5 {[%emt 0:00:14]} d6 {[%emt 0:00:06]} 7. Bg5 {[%emt 0:00:29]} a6 {[%emt 0:00:06]} 8. Na3 {[%emt 0:00:03]} b5 {[%emt 0:00:03]} 9. Nd5 {[%emt 0:00:38]} Be7 {[%emt 0:00:06]} 10. Bxf6 {[%emt 0:00:28]} Bxf6 {[%emt 0:00:04]} 11. c3 {[%emt 0:00:06]} Rb8 {[%emt 0:00:13]} 12. Nc2 {[%emt 0:00:58]} Bg5 {[%emt 0:00:04]} 13. Be2 {[%emt 0:01:20]} O-O {[%emt 0:00:49]} 14. Qd3 {[%emt 0:02:31]} Be6 {[%emt 0:30:00]} 15. Rd1 {[%emt 0:05:50]} a5 {[%emt 0:05:49]} 16. Na3 {[%emt 0:09:42]} b4 {[%emt 0:07:18] The position is equal.} 17. Nb5 {[%emt 0:04:49][%cal Ob5d6]} bxc3 {[%emt 0:00:14]} 18. bxc3 {[%emt 0:03:08][%cal Ob5d6]} Ne7 {[%emt 0:03:24][%cal Bc6e7,Be7g6,Bg6f8,Bf8d7,Bd7c5][%mdl 32]} 19. h4 {[%emt 0:12:29]} Bxh4 {[%emt 0:09:50]} 20. Ndc7 {[%emt 0:10:02] A dynamic duo of knights.} Ng6 {[%emt 0:01:28]} 21. g3 {[%emt 0:10:10] Repels Nf4} Be7 {[%emt 0:00:06]} 22. Nxe6 {[%emt 0:02:14]} fxe6 {[%emt 0:00:06]} 23. Bg4 {[%emt 0:04:12]} Rf6 {[%emt 0:14:31] aiming for ...Qb6.} 24. O-O {[%emt 0:05:26]} Rb6 {[%emt 0:01:45] Black converts the advantage convincingly.} 25. a4 {[%emt 0:08:51]} (25. Qc4 $15) 25... Nf8 $17 {[%emt 0:03:20]} 26. c4 {[%emt 0:02:46][%cal Oc4c5] c5! would now be deadly.} Nd7 {[%emt 0:00:55]} 27. c5 {[%emt 0:09:55]} (27. Qd2 $17) 27... Nxc5 $19 {[%emt 0:00:11]} 28. Qc4 {[%emt 0:00:06]} Rb8 {[%emt 0:03:34]} 29. Rd2 {[%emt 0:01:20]} Qb6 {[%emt 0:00:37]} 30. Rfd1 {[%emt 0:00:27] [#]} Rd8 {[%emt 0:01:06]} 31. Kg2 {[%emt 0:00:45]} Qc6 {[%emt 0:00:52]} 32. f3 {[%emt 0:00:34]} g6 {[%emt 0:00:24]} 33. Qc3 {[%emt 0:01:10]} h5 {[%emt 0:01:16]} 34. Bh3 {[%emt 0:00:05]} Kg7 {[%emt 0:01:36]} 35. Qxa5 {[%emt 0:01:47]} Nb3 {[%emt 0:01:32]} 36. Qc7 {[%emt 0:01:14]} Qxc7 {[%emt 0:00:26]} 37. Nxc7 {[%emt 0:00:01]} Nxd2 {[%emt 0:00:08]} 38. Nxe6+ $2 {[%emt 0:01:06] [#]} (38. Rxd2 Kf7 39. a5) 38... Rxe6 $1 {[%emt 0:00:02]} 39. Bxe6 {[%emt 0:00:08] [#]} Bg5 {[%emt 0:00:04]} 40. a5 {[%emt 0:00:00]} Rb8 {[%emt 0:00:00]} 41. Ra1 {[%emt 0:06:37]} Rb2 {[%emt 0:02:59] ...Nb3+ is the strong threat.} 42. a6 $2 {[%emt 0:02:58]} (42. Ra2 Rxa2 (42... Nxe4+ $2 43. Rxb2 Nc5 44. Bc4 $18) 43. Bxa2) 42... Nxe4+ {[%emt 0:01:09] Weighted Error Value: White=0.45/Black=0.10 (very precise) .  Mistake:       	White=4     	---        Inaccurate:     	White=4     	Black=1      OK:         	White=6     	Black=16     Best:        	White=1     	Black=2      Brilliant:      	---       	Black=1} ({Stronger than} 42... Nb3+ 43. Kh1 Be3 (43... Nxa1 $2 {is the wrong capture.} 44. a7 $18) 44. a7 Bxa7 (44... Nxa1 $2 {loses.} 45. a8=Q $18) 45. Rxa7+ Kf6 46. Bd5 $11) 0-1

[Event "Azerbaijan Men Championship 2024"]
[Site "Baku"]
[Date "2024.04.16"]
[Round "6.1"]
[White "Muradli, Mahammad"]
[Black "Samadov, Read"]
[Result "1-0"]
[ECO "E92"]
[WhiteElo "2555"]
[BlackElo "2502"]
[Annotator "TA"]
[PlyCount "79"]
[EventDate "2024.04.11"]
[EventType "swiss"]
[EventCountry "AZE"]
[SourceTitle "playchess.com"]
[Source "ChessBase"]
[SourceQuality "1"]
[TimeControl "40/5400+30:1800+30"]

{[%evp 24,79,16,14,10,12,17,13,14,11,18,0,21,10,6,0,0,0,0,0,26,8,72,83,83,89,102,112,123,118,187,197,200,158,180,187,212,191,190,172,189,200,237,226,303,299,353,354,364,354,346,332,381,252,1078,1153,2915,2635]} 1. d4 {[%emt 0:06:06]} Nf6 {[%emt 0:00:05]} 2. c4 {[%emt 0:00:04]} g6 {[%emt 0:00:06]} 3. Nc3 {[%emt 0:00:36]} Bg7 {[%emt 0:00:07]} 4. e4 {[%emt 0:00:05]} d6 {[%emt 0:00:06]} 5. Be2 {[%emt 0:00:44]} O-O {[%emt 0:00:23]} 6. Nf3 {[%emt 0:01:04]} e5 {[%emt 0:00:17]} 7. Be3 {[%emt 0:02:26]} exd4 {[%emt 0:00:33]} 8. Nxd4 {[%emt 0:00:04]} Re8 {[%emt 0:00:06]} 9. f3 {[%emt 0:00:08]} c6 {[%emt 0:00:21]} 10. Bf2 {[%emt 0:00:08]} d5 {[%emt 0:00:34]} 11. exd5 {[%emt 0:00:06]} cxd5 {[%emt 0:00:04]} 12. O-O {[%emt 0:00:13]} Nc6 {[%emt 0:00:57]} 13. c5 {[%emt 0:00:12]} Bd7 {[%emt 0:01:19]} 14. Re1 {[%emt 0:05:51]} Nxd4 {[%emt 0:09:42]} 15. Bxd4 {[%emt 0:00:25]} a5 {[%emt 0:01:52] The position is equal.} 16. Qd2 {[%emt 0:11:29]} Bc6 {[%emt 0:06:26]} 17. Nb5 {[%emt 0:11:56]} Qd7 {[%emt 0:14:00]} 18. a4 {[%emt 0:02:04]} Nh5 {[%emt 0:05:31][%cal Bf6h5,Bh5g7,Bg7f5][%mdl 32]} 19. Bf2 {[%emt 0:02:34]} Be5 {[%emt 0:09:10]} 20. Bf1 {[%emt 0:00:59]} Ng7 {[%emt 0:06:55]} 21. Rad1 {[%emt 0:05:09][%cal Of1c4]} Nf5 {[%emt 0:05:34]} 22. b3 {[%emt 0:07:09]} Bg7 {[%emt 0:09:06]} (22... d4 $11 {remains equal.}) 23. Rxe8+ $16 {[%emt 0:11:16] White now steadily converts the win.} Rxe8 {[%emt 0:00:22]} 24. Bd3 {[%emt 0:00:06]} Bf8 {[%emt 0:07:55]} 25. Bxf5 {[%emt 0:04:52]} Qxf5 {[%emt 0:00:08]} 26. Nd4 {[%emt 0:00:09]} (26. Qxa5 Qc2 27. Re1 Rxe1+ 28. Qxe1 Bxc5 $11 (28... Qxb3 29. Bd4 $11)) 26... Qf6 {[%emt 0:05:00]} (26... Qc8 $16 {was necessary.}) 27. Qxa5 $18 {[%emt 0:00:22]} h5 {[%emt 0:00:48]} 28. Qc3 {[%emt 0:07:26]} h4 {[%emt 0:01:45]} 29. h3 {[%emt 0:00:41]} Bd7 {[%emt 0:01:56]} 30. Nb5 {[%emt 0:03:03]} Qg5 {[%emt 0:03:12]} 31. Qd2 $36 {[%emt 0:01:22][%mdl 2048] Keeping Black busy.} Qxd2 {[%emt 0:04:03]} 32. Rxd2 {[%emt 0:00:10]} Rc8 {[%emt 0:00:14] [#]} 33. b4 $1 {[%emt 0:01:04]} (33. Rxd5 Be6 34. Rd3 Bxc5 $11) (33. Bxh4 Bxb5 34. axb5 Rxc5 $11) 33... Bg7 {[%emt 0:04:17]} 34. Bxh4 {[%emt 0:03:39]} (34. Rxd5 Bc6 35. Rd1 Ra8 $16) 34... d4 {[%emt 0:00:46]} 35. Nd6 {[%emt 0:00:42]} (35. Nxd4 Bxa4 36. Kf2 Re8 $18) 35... Ra8 {[%emt 0:01:24]} 36. a5 {[%emt 0:00:07]} ({Not} 36. Nxb7 Rxa4 37. Na5 Rxb4 $11) 36... Bh6 {[%emt 0:00:27]} 37. Rd3 {[%emt 0:00:09]} Bf4 {[%emt 0:00:38]} 38. Bf6 {[%emt 0:01:20] [#] Black must now prevent Nc4.} ({Much less strong is} 38. Nxb7 Rb8 $18) 38... b6 $2 {[%emt 0:01:10]} (38... Ra6 39. Bxd4 Bxd6) 39. cxb6 {[%emt 0:00:22]} Bxd6 {[%emt 0:00:14]} 40. Rxd4 {[%emt 0:00:00] Weighted Error Value: White=0.09 (flawless) /Black=0.23 (precise) .  Mistake:       	---       	Black=3      Inaccurate:     	White=1     	Black=3      OK:         	White=13    	Black=8      Best:        	White=3     	---} 1-0